bitfinex/quotes_SOLUSD_20240917
["timestamp","ask_amount","ask_price","bid_price","bid_amount"]
[1726582957305,0.3180204,134.01,134.0,9.36930022]
[1726582958489,15.2187204,134.05,134.0,9.36930022]
[1726582958678,7.462,134.02,134.0,9.36930022]
[1726582958902,7.4626,134.0,133.98,9.36930022]
[1726582959417,18.6541,134.02,133.96,9.36930022]
[1726582959590,21.14387243,134.01,133.96,9.36930022]
[1726582959790,21.14387243,134.01,133.94,9.36930022]
[1726582959791,7.4644,133.97,133.94,9.36930022]
[1726582960010,7.4643,133.98,133.94,9.36930022]
[1726582960185,6.5327,134.0,133.94,9.36930022]
[1726582960390,25.1903,134.0,133.94,9.36930022]
[1726582960591,13.9954,134.0,133.97,9.36930022]
[1726582961009,7.461,134.03,133.99,9.36930022]
[1726582961322,7.4615,134.02,133.99,9.36930022]
[1726582961614,14.0267,134.04,134.01,9.36930022]
[1726582961815,22.6786204,134.05,134.01,9.36930022]
[1726582962113,7.4605,134.04,134.01,9.36930022]
[1726582962984,7.461,134.03,134.01,9.36930022]
[1726582963185,7.4615,134.02,134.01,9.36930022]
[1726582963385,7.4615,134.02,133.97,15.7303]
[1726582963386,7.4615,134.02,133.99,9.36930022]
[1726582964191,7.4626,134.0,133.97,9.36930022]
[1726582964406,7.4633,133.99,133.97,9.36930022]
[1726582964713,7.4627,134.0,133.97,9.36930022]
[1726582965618,7.4621,134.01,133.99,9.36930022]
[1726582965794,7.4626,134.0,133.99,9.36930022]
[1726582965995,7.4626,134.0,133.94,16.4828]
[1726582965996,7.4634,133.99,133.97,9.36930022]
[1726582966898,7.4628,134.0,133.97,9.36930022]
[1726582967192,20.0,134.02,133.95,9.36930022]
[1726582967395,13.5602,134.01,133.98,9.36930022]
[1726582967998,7.4625,134.01,133.98,9.36930022]
[1726582968408,7.4628,134.0,133.98,9.36930022]
[1726582969795,7.4632,133.99,133.98,9.36930022]
[1726582969993,7.4632,133.99,133.96,9.36930022]
[1726582970214,7.4639,133.98,133.96,9.36930022]
[1726582971003,7.4643,133.97,133.96,9.36930022]
[1726582972322,18.6544,134.02,133.96,9.36930022]
[1726582972516,7.4639,133.98,133.96,9.36930022]
[1726582973229,7.4643,133.97,133.96,9.36930022]
[1726582975992,17.53967243,133.99,133.91,34.0364]
[1726582975993,7.4654,133.95,133.94,9.36930022]
[1726582976190,7.4654,133.95,133.93,0.0787433]
[1726582976191,27.466,133.94,133.93,0.0787433]
[1726582976923,7.466,133.94,133.93,0.0787433]
[1726582977095,7.4656,133.95,133.93,0.0787433]
[1726582978096,7.466,133.94,133.93,0.0787433]
[1726582979523,37.466,133.94,133.93,0.0787433]
[1726582980326,30.0,133.94,133.93,0.0787433]
[1726582980501,7.4638,133.98,133.95,9.36930022]
[1726582980699,6.0966,134.0,133.95,9.36930022]
[1726582980700,30.0,133.96,133.95,9.36930022]
[1726582981099,37.4649,133.96,133.93,9.44804352]
[1726582981299,37.4649,133.96,133.95,9.36930022]
[1726582981495,24.7534,134.0,133.95,9.36930022]
[1726582981926,15.6496,134.02,133.97,9.36930022]
[1726582982104,6.6124,134.04,133.99,9.36930022]
[1726582982303,6.6124,134.04,134.01,9.36930022]
[1726582982510,0.2383938,134.05,134.01,9.36930022]
[1726582982725,7.6987938,134.05,134.01,9.36930022]
[1726582983128,1.14387243,134.04,134.01,9.36930022]
[1726582983433,1.14387243,134.04,133.99,9.36930022]
[1726582984000,7.4616,134.02,133.99,9.36930022]
[1726582984402,21.14387243,134.04,133.99,9.36930022]
[1726582984610,7.4611,134.03,133.99,9.36930022]
[1726582984813,1.14387243,134.02,133.99,9.36930022]
[1726582985024,0.2383938,134.05,133.96,9.36930022]
[1726582985025,27.4626,134.0,133.96,9.36930022]
[1726582985228,0.2383938,134.05,133.96,9.36930022]
[1726582985229,7.4639,133.98,133.96,9.36930022]
[1726582985536,7.4633,133.99,133.96,9.36930022]
[1726582985827,7.4628,134.0,133.98,9.36930022]
[1726582986040,7.4622,134.01,133.98,9.36930022]
[1726582986199,18.8884938,134.05,133.98,9.36930022]
[1726582986200,8.60687243,134.0,133.98,9.36930022]
[1726582986400,0.2383938,134.05,134.0,9.36930022]
[1726582986721,0.2383938,134.05,134.02,9.36930022]
[1726582987053,7.461,134.03,134.0,9.36930022]
[1726582987454,7.4605,134.04,134.02,9.36930022]
[1726582987625,0.2383938,134.05,134.0,9.36930022]
[1726582988039,7.4621,134.01,134.0,9.36930022]
[1726582988534,7.4615,134.02,134.0,9.36930022]
[1726582989031,7.463,134.0,133.98,9.36930022]
[1726582989243,7.4622,134.01,134.0,9.36930022]
[1726582989414,7.4616,134.02,134.0,9.36930022]
[1726582989812,18.8886938,134.05,133.98,9.36930022]
[1726582990010,0.12549,134.04,133.98,9.36930022]
[1726582990234,0.12549,134.04,133.96,9.36930022]
[1726582990235,18.6535,134.03,133.96,9.36930022]
[1726582990532,7.4627,134.0,133.98,9.36930022]
[1726582990763,7.4632,133.99,133.98,9.36930022]
[1726582990944,7.4639,133.98,133.94,9.36930022]
[1726582991145,24.7382,134.01,133.94,9.36930022]
[1726582991320,7.4633,133.99,133.96,9.36930022]
[1726582991528,15.7666,134.03,133.98,9.36930022]
[1726582991719,6.0817,134.04,134.0,9.36930022]
[1726582991918,7.4611,134.03,134.0,9.36930022]
[1726582992117,0.2383938,134.05,134.0,9.36930022]
[1726582992533,0.2383938,134.05,134.02,9.36930022]
[1726582992948,7.461,134.03,134.02,9.36930022]
[1726582993248,7.4605,134.04,134.02,9.36930022]
[1726582994044,7.6983938,134.05,134.02,9.36930022]
[1726582994632,7.4605,134.04,134.02,9.36930022]
[1726582995152,0.2383938,134.05,134.04,9.36930022]
[1726582995519,7.6982938,134.05,134.04,9.36930022]
[1726582995715,0.2383938,134.05,134.04,9.36930022]
[1726582996049,0.2383938,134.05,134.02,9.36930022]
[1726582996242,7.6983938,134.05,134.02,9.36930022]
[1726582996429,7.6983938,134.05,134.04,9.36930022]
[1726582996746,0.2383938,134.05,134.04,9.36930022]
[1726582997726,0.2383938,134.05,134.04,24.79550022]
[1726583002567,0.3171371,134.1,134.09,9.36930022]
[1726583002933,0.3171371,134.1,134.09,58.18898852]
[1726583003453,0.3171371,134.15,134.14,9.36930022]
[1726583003769,7.8031371,134.19,134.18,16.82190022]
[1726583003770,0.3171371,134.19,134.18,16.82190022]
[1726583003931,0.3171371,134.19,134.18,9.36930022]
[1726583004433,0.3171371,134.19,134.18,33.27167422]
[1726583004627,0.3171371,134.19,134.18,40.72427422]
[1726583005057,0.3171371,134.19,134.18,33.14618422]
[1726583005235,0.3171371,134.24,134.23,8.36930022]
[1726583005929,0.3171371,134.24,134.23,32.14618422]
[1726583006356,4.16858676,134.3,134.29,8.36930022]
[1726583006656,4.51772126,134.3,134.29,8.36930022]
[1726583008353,0.3937588,134.32,134.31,8.36930022]
[1726583009944,0.3937588,134.32,134.31,33.63421714]
[1726583010255,0.3937588,134.32,134.31,8.36930022]
[1726583011137,0.3937588,134.32,134.31,32.14618422]
[1726583011359,0.3937588,134.32,134.31,32.27167422]
[1726583011536,0.3937588,134.32,134.31,33.75996082]
[1726583011737,0.3937588,134.38,134.34,48.41086422]
[1726583011969,0.3937588,134.38,134.37,8.36930022]
[1726583017180,7.4443,134.33,134.32,8.36930022]
[1726583017979,0.3937588,134.38,134.32,8.36930022]
[1726583018177,7.4443,134.33,134.32,8.36930022]
[1726583019067,7.4421,134.37,134.36,8.36930022]
[1726583019374,7.4432,134.35,134.34,8.36930022]
[1726583019952,0.3937588,134.38,134.34,8.36930022]
[1726583020252,0.3937588,134.38,134.36,8.36930022]
[1726583020457,7.8352588,134.38,134.36,8.36930022]
[1726583020651,7.4421,134.37,134.36,8.36930022]
[1726583020951,0.3937588,134.38,134.36,8.36930022]
[1726583021453,7.8353588,134.38,134.36,8.36930022]
[1726583021654,0.3937588,134.38,134.36,8.36930022]
[1726583022270,7.8353588,134.38,134.36,8.36930022]
[1726583022849,7.4421,134.37,134.36,8.36930022]
[1726583023048,0.3937588,134.38,134.36,8.36930022]
[1726583025574,18.9894588,134.44,134.43,8.36930022]
[1726583025575,0.3937588,134.44,134.43,8.36930022]
[1726583026359,7.8319588,134.44,134.43,8.36930022]
[1726583026561,0.3937588,134.44,134.43,8.36930022]
[1726583027476,0.3937588,134.44,134.43,22.40009022]
[1726583027685,0.3937588,134.5,134.49,8.36930022]
[1726583028058,7.8286588,134.5,134.49,8.36930022]
[1726583029486,7.4349,134.5,134.49,8.36930022]
[1726583031890,7.9070329,134.54,134.53,8.36930022]
[1726583032776,7.4354,134.49,134.48,8.36930022]
[1726583032982,7.4366,134.47,134.46,8.36930022]
[1726583033375,7.4377,134.45,134.44,8.36930022]
[1726583034691,6.4629,134.51,134.47,8.36930022]
[1726583034896,0.4743329,134.54,134.49,8.36930022]
[1726583035075,7.4338,134.52,134.51,8.36930022]
[1726583036276,7.4349,134.5,134.49,8.36930022]
[1726583037397,0.4743329,134.54,134.51,8.36930022]
[1726583037991,7.4338,134.52,134.51,8.36930022]
[1726583038909,0.4743329,134.54,134.53,8.36930022]
[1726583039285,7.9070329,134.54,134.53,8.36930022]
[1726583039675,7.4338,134.52,134.51,8.36930022]
[1726583039877,7.4349,134.51,134.49,8.36930022]
[1726583040095,7.4349,134.5,134.49,8.36930022]
[1726583040296,7.4357,134.49,134.47,8.36930022]
[1726583040680,19.0572329,134.54,134.47,8.36930022]
[1726583040681,1.14387243,134.53,134.47,8.36930022]
[1726583040883,0.4743329,134.54,134.53,8.36930022]
[1726583041501,7.9070329,134.54,134.53,8.36930022]
[1726583041683,0.4743329,134.54,134.53,8.36930022]
[1726583042799,0.4743329,134.54,134.5,8.36930022]
[1726583042999,0.4743329,134.54,134.52,8.36930022]
[1726583043208,7.9071329,134.54,134.52,8.36930022]
[1726583043803,7.4332,134.53,134.52,8.36930022]
[1726583044485,7.4354,134.49,134.48,8.36930022]
[1726583045197,1.14387243,134.53,134.46,8.36930022]
[1726583045404,1.14387243,134.53,134.44,15.4391]
[1726583045405,25.5534329,134.54,134.49,8.36930022]
[1726583045707,7.4333,134.53,134.49,8.36930022]
[1726583045904,7.4338,134.52,134.49,8.36930022]
[1726583046073,7.9070329,134.54,134.53,8.36930022]
[1726583046582,7.9070329,134.54,134.48,8.36930022]
[1726583046583,7.4354,134.5,134.48,8.36930022]
[1726583046993,7.4354,134.49,134.48,8.36930022]
[1726583047393,43.776884,134.51,134.41,8.36930022]
[1726583047614,18.5917,134.47,134.41,8.36930022]
[1726583047901,1.14387243,134.5,134.45,8.36930022]
[1726583048108,1.14387243,134.5,134.43,8.36930022]
[1726583048276,7.4382,134.44,134.43,8.36930022]
[1726583048480,0.12549,134.49,134.45,8.36930022]
[1726583048807,7.436,134.48,134.47,8.36930022]
[1726583049191,18.5817,134.55,134.41,6.4398]
[1726583049192,7.4354,134.5,134.49,8.36930022]
[1726583049505,7.4349,134.5,134.49,8.36930022]
[1726583049709,7.4362,134.48,134.46,8.36930022]
[1726583050001,7.4362,134.48,134.41,6.4398]
[1726583050002,7.4343,134.51,134.5,8.36930022]
[1726583050609,7.4343,134.51,134.45,7.4376]
[1726583050610,7.4343,134.51,134.48,8.36930022]
[1726583051000,7.4354,134.5,134.48,8.36930022]
[1726583051208,7.4354,134.49,134.46,8.36930022]
[1726583051503,7.4366,134.47,134.46,8.36930022]
[1726583051687,7.4359,134.49,134.46,8.36930022]
[1726583052197,8.58007243,134.48,134.46,8.36930022]
[1726583052379,7.4361,134.48,134.46,8.36930022]
[1726583052787,7.4377,134.45,134.44,8.36930022]
[1726583052987,1.14387243,134.47,134.42,8.36930022]
[1726583053509,50.0,134.52,134.45,8.36930022]
[1726583053510,0.25098,134.52,134.45,8.36930022]
[1726583053688,7.4349,134.5,134.48,8.36930022]
[1726583054002,7.4349,134.51,134.48,8.36930022]
[1726583054413,7.435,134.5,134.48,8.36930022]
[1726583055203,7.4344,134.51,134.48,8.36930022]
[1726583055508,7.4332,134.53,134.52,8.36930022]
[1726583056012,0.4743329,134.54,134.49,8.36930022]
[1726583056680,7.4349,134.5,134.49,8.36930022]
[1726583056882,7.4359,134.49,134.47,8.36930022]
[1726583057184,7.4355,134.49,134.47,8.36930022]
[1726583057706,7.4356,134.49,134.47,8.36930022]
[1726583058210,7.436,134.48,134.47,8.36930022]
[1726583059091,7.4354,134.5,134.47,8.36930022]
[1726583059280,0.4743329,134.54,134.45,8.36930022]
[1726583059481,0.4743329,134.54,134.44,8.36930022]
[1726583059482,37.1704,134.52,134.44,8.36930022]
[1726583059707,7.4377,134.45,134.44,8.36930022]
[1726583060005,7.4367,134.47,134.45,8.36930022]
[1726583060503,7.4371,134.46,134.45,8.36930022]
[1726583060710,18.5883,134.5,134.43,8.36930022]
[1726583060895,7.4366,134.47,134.45,8.36930022]
[1726583061089,18.5834,134.53,134.47,8.36930022]
[1726583061608,7.4349,134.5,134.47,8.36930022]
[1726583061807,7.4343,134.52,134.49,8.36930022]
[1726583062014,7.4345,134.51,134.49,8.36930022]
[1726583062218,7.4334,134.53,134.49,8.36930022]
[1726583062519,6.3335,134.56,134.51,8.36930022]
[1726583062683,7.4322,134.55,134.53,8.36930022]
[1726583063486,7.432,134.56,134.53,8.36930022]
[1726583063689,7.4323,134.55,134.53,8.36930022]
[1726583063883,7.432,134.56,134.53,8.36930022]
[1726583064095,24.8355,134.59,134.53,8.36930022]
[1726583064280,7.4316,134.56,134.53,8.36930022]
[1726583064484,7.4323,134.55,134.53,8.36930022]
[1726583064907,7.4317,134.56,134.53,8.36930022]
[1726583065123,7.4311,134.57,134.53,8.36930022]
[1726583066613,7.4323,134.55,134.53,8.36930022]
[1726583066909,7.4338,134.52,134.49,8.36930022]
[1726583067109,1.61820533,134.54,134.49,8.36930022]
[1726583067110,7.4349,134.5,134.49,8.36930022]
[1726583068519,0.4743329,134.54,134.52,8.36930022]
[1726583068695,0.4743329,134.54,134.53,24.0876]
[1726583069897,0.4743329,134.54,134.53,16.6544]
[1726583070401,0.4743329,134.54,134.53,24.0876]
[1726583073415,15.5756,134.65,134.59,7.4298]
[1726583073589,6.2163,134.66,134.61,8.36930022]
[1726583073794,7.9538611,134.62,134.61,8.36930022]
[1726583073991,0.5255611,134.62,134.59,8.36930022]
[1726583074497,7.4294,134.6,134.59,8.36930022]
[1726583074912,0.5255611,134.62,134.57,8.36930022]
[1726583075411,7.4305,134.58,134.57,8.36930022]
[1726583075915,7.429,134.61,134.58,8.36930022]
[1726583076314,0.5255611,134.62,134.58,8.36930022]
[1726583076503,7.4295,134.6,134.58,8.36930022]
[1726583076813,7.4299,134.59,134.58,8.36930022]
[1726583077117,1.14387243,134.59,134.56,8.36930022]
[1726583077285,0.5255611,134.62,134.59,8.36930022]
[1726583077492,7.429,134.61,134.59,8.36930022]
[1726583077886,7.9538611,134.62,134.61,8.36930022]
[1726583079420,7.4294,134.6,134.59,8.36930022]
[1726583079791,0.5255611,134.62,134.59,8.36930022]
[1726583080115,7.429,134.61,134.59,8.36930022]
[1726583080306,0.5255611,134.62,134.61,8.36930022]
[1726583081196,7.9538611,134.62,134.61,8.36930022]
[1726583081694,0.5255611,134.62,134.59,8.36930022]
[1726583081911,7.9540611,134.62,134.61,8.36930022]
[1726583082716,7.4289,134.61,134.58,8.36930022]
[1726583082926,0.5255611,134.62,134.61,8.36930022]
[1726583082927,7.9542611,134.62,134.61,8.36930022]
[1726583083126,0.5255611,134.62,134.61,8.36930022]
[1726583083904,0.5255611,134.62,134.61,15.79810022]
[1726583084120,0.5255611,134.62,134.61,8.36930022]
[1726583084634,0.5255611,134.62,134.61,22.01690022]
[1726583085825,0.5255611,134.7,134.66,7.4261]
[1726583086001,0.5255611,134.7,134.67,9.85404036]
[1726583086195,0.5255611,134.7,134.69,8.36930022]
[1726583089314,0.5255611,134.7,134.69,17.27819909]
[1726583089517,7.4218,134.74,134.7,7.4238]
[1726583089710,0.2089531,134.72,134.71,1.48427847]
[1726583089907,0.2089531,134.72,134.71,8.36930022]
[1726583090312,0.2089531,134.72,134.71,15.79260022]
[1726583091802,0.2089531,134.72,134.71,61.02422707]
[1726583092311,0.2089531,134.72,134.71,60.42799648]
[1726583093341,0.2089531,134.72,134.71,8.36930022]
[1726583094929,7.6317531,134.72,134.71,8.36930022]
[1726583095431,7.4239,134.7,134.69,8.36930022]
[1726583095832,7.4235,134.71,134.69,8.36930022]
[1726583096343,7.425,134.68,134.67,8.36930022]
[1726583097210,0.2089531,134.72,134.69,8.36930022]
[1726583097412,7.4237,134.71,134.69,8.36930022]
[1726583097643,0.2089531,134.72,134.71,8.36930022]
[1726583097936,7.6318531,134.72,134.71,8.36930022]
[1726583098111,0.2089531,134.72,134.71,8.36930022]
[1726583098311,7.6317531,134.72,134.71,8.36930022]
[1726583098511,0.2089531,134.72,134.71,8.36930022]
[1726583099745,8.77562553,134.72,134.71,8.36930022]
[1726583099938,7.4239,134.7,134.69,8.36930022]
[1726583100316,7.6320531,134.72,134.71,8.36930022]
[1726583100517,0.2089531,134.72,134.71,8.36930022]
[1726583101743,0.2089531,134.72,134.71,15.79260022]
[1726583101942,0.2089531,134.72,134.71,75.90889648]
[1726583103333,0.2089531,134.72,134.71,31.27350022]
[1726583103538,0.8495699,134.79,134.78,35.6085]
[1726583103740,0.4495699,134.86,134.84,15.78540022]
[1726583104033,0.4495699,134.86,134.85,8.82614713]
[1726583104234,0.4495699,134.86,134.85,7.4156]
[1726583104414,0.4495699,134.86,134.84,26.90860022]
[1726583105233,0.4495699,134.86,134.85,1.48290968]
[1726583105420,0.4495699,134.86,134.85,8.89850968]
[1726583105626,0.4495699,134.86,134.85,7.4156]
[1726583106525,0.4495699,134.86,134.84,8.36930022]
[1726583107136,0.4495699,134.86,134.85,7.4156]
[1726583107339,0.4495699,134.86,134.84,8.36930022]
[1726583108153,7.8646699,134.86,134.84,8.36930022]
[1726583108450,0.4495699,134.86,134.84,8.36930022]
[1726583108951,7.8647699,134.86,134.84,8.36930022]
[1726583109337,7.4167,134.83,134.82,8.36930022]
[1726583109550,0.4495699,134.86,134.84,8.36930022]
[1726583109853,0.4495699,134.86,134.82,8.36930022]
[1726583110060,7.4167,134.83,134.82,8.36930022]
[1726583110257,6.5105,134.84,134.78,8.36930022]
[1726583110428,0.4495699,134.86,134.85,8.36930022]
[1726583110628,9.7495699,134.93,134.92,8.36930022]
[1726583111532,17.1607699,134.93,134.92,8.36930022]
[1726583112147,9.7495699,134.93,134.92,8.36930022]
[1726583112467,9.632024,134.93,134.92,8.36930022]
[1726583113270,9.632024,134.93,134.92,15.78100022]
[1726583113752,9.632024,134.93,134.92,60.41639648]
[1726583114255,5.5227319,135.0,134.99,8.36930022]
[1726583114835,12.9301319,135.0,134.99,8.36930022]
[1726583115230,5.5227319,135.0,134.94,8.36930022]
[1726583115465,5.5227319,135.0,134.96,8.36930022]
[1726583115668,7.4079,134.99,134.98,8.36930022]
[1726583115959,5.5227319,135.0,134.98,8.36930022]
[1726583118633,7.4079,134.99,134.98,8.36930022]
[1726583118943,5.5227319,135.0,134.88,69.501]
[1726583118944,7.4107,134.94,134.93,8.36930022]
[1726583120152,7.4107,134.94,134.89,8.36930022]
[1726583120153,7.4128,134.9,134.89,8.36930022]
[1726583120732,7.4139,134.88,134.87,8.36930022]
[1726583121261,7.4132,134.9,134.87,8.36930022]
[1726583121447,7.4132,134.9,134.89,8.36930022]
[1726583121760,7.4132,134.9,134.83,18.5418]
[1726583121761,7.4116,134.93,134.91,8.36930022]
[1726583121963,18.5226,134.98,134.93,8.36930022]
[1726583122170,18.5226,134.98,134.95,8.36930022]
[1726583122171,7.4096,134.96,134.95,8.36930022]
[1726583124273,7.4096,134.96,134.9,18.5322]
[1726583124274,7.409,134.98,134.97,8.36930022]
[1726583125053,7.409,134.98,134.93,7.411]
[1726583125054,12.9301319,135.0,134.99,8.36930022]
[1726583125464,5.5227319,135.0,134.99,8.36930022]
[1726583126462,5.5227319,135.0,134.99,9.38960966]
[1726583126670,5.5227319,135.0,134.99,17.25781172]
[1726583126832,5.5227319,135.0,134.99,111.98494783]
[1726583127232,5.5227319,135.0,134.99,113.46517145]
[1726583127458,5.5227319,135.0,134.99,111.98494783]
[1726583127761,5.5227319,135.0,134.99,113.46557924]
[1726583127954,7.9311319,135.08,135.07,8.36930022]
[1726583128156,0.5277319,135.08,135.07,8.36930022]
[1726583129936,0.5277319,135.17,135.08,0.25098]
[1726583130141,7.3986,135.16,135.15,8.36930022]
[1726583130663,7.3997,135.14,135.13,8.36930022]
[1726583131079,0.5277319,135.17,135.15,8.36930022]
[1726583131373,7.3986,135.16,135.15,8.36930022]
[1726583131544,0.5277319,135.17,135.15,8.36930022]
[1726583131742,7.3997,135.14,135.13,8.36930022]
[1726583132064,7.3997,135.14,135.05,25.9161]
[1726583132065,7.4008,135.12,135.11,8.36930022]
[1726583132853,7.4019,135.1,135.09,8.36930022]
[1726583133563,1.14387243,135.1,135.03,8.36930022]
[1726583133775,1.14387243,135.1,135.05,8.36930022]
[1726583133952,7.4041,135.06,135.05,8.36930022]
[1726583134456,18.5072,135.09,135.02,8.36930022]
[1726583134457,7.4057,135.03,135.02,8.36930022]
[1726583134765,7.4057,135.03,134.95,24.9881]
[1726583134766,7.4068,135.01,135.0,8.36930022]
[1726583135264,7.4079,134.99,134.98,8.36930022]
[1726583135567,7.4075,135.0,134.98,8.36930022]
[1726583136145,7.4069,135.01,135.0,8.36930022]
[1726583136473,18.5106,135.06,135.03,8.36930022]
[1726583136474,7.4052,135.04,135.03,8.36930022]
[1726583137047,7.4047,135.05,135.03,8.36930022]
[1726583137248,18.5066,135.09,135.05,8.36930022]
[1726583137572,7.403,135.08,135.07,8.36930022]
[1726583137779,6.2184,135.1,135.05,8.36930022]
[1726583137780,7.4041,135.06,135.05,8.36930022]
[1726583138066,7.4063,135.02,135.01,8.36930022]
[1726583138653,7.4056,135.04,135.03,8.36930022]
[1726583139652,7.4063,135.02,135.01,8.36930022]
[1726583140367,0.5277319,135.17,135.11,8.36930022]
[1726583140950,0.5277319,135.17,135.14,8.36930022]
[1726583141147,0.5277319,135.17,135.12,8.36930022]
[1726583141451,0.5277319,135.17,135.04,1.4799972]
[1726583141452,7.4013,135.11,135.1,8.36930022]
[1726583142680,7.4024,135.09,135.08,8.36930022]
[1726583143377,18.503,135.12,135.06,8.36930022]
[1726583143378,7.4035,135.07,135.06,8.36930022]
[1726583143950,7.403,135.08,135.06,8.36930022]
[1726583144364,7.4035,135.07,135.06,8.36930022]
[1726583145159,34.6626,135.12,135.06,8.36930022]
[1726583145473,16.6873319,135.17,135.12,8.36930022]
[1726583145977,0.5277319,135.17,135.14,8.36930022]
[1726583146178,7.3992,135.15,135.14,8.36930022]
[1726583146347,7.9261319,135.17,135.16,8.36930022]
[1726583146553,0.5277319,135.17,135.16,15.76790022]
[1726583147073,0.5277319,135.17,135.16,17.24651177]
[1726583147573,7.9215319,135.25,135.23,8.36930022]
[1726583147873,0.5277319,135.25,135.23,8.36930022]
[1726583148262,0.5277319,135.25,135.24,1.47856401]
[1726583148463,0.5277319,135.25,135.23,8.36930022]
[1726583148767,7.9215319,135.25,135.23,8.36930022]
[1726583148968,0.5277319,135.25,135.23,8.36930022]
[1726583149166,7.3942,135.24,135.23,8.36930022]
[1726583149868,7.3964,135.2,135.19,8.36930022]
[1726583150079,7.3958,135.22,135.19,8.36930022]
[1726583150259,0.5277319,135.25,135.19,8.36930022]
[1726583150575,18.4869,135.24,135.19,8.36930022]
[1726583150756,7.3969,135.2,135.19,8.36930022]
[1726583151064,18.4869,135.24,135.21,8.36930022]
[1726583151259,7.3953,135.22,135.21,8.36930022]
[1726583151464,7.3964,135.2,135.19,8.36930022]
[1726583151955,7.3975,135.18,135.17,8.36930022]
[1726583152674,18.4869,135.24,135.17,8.36930022]
[1726583152883,7.3975,135.18,135.17,8.36930022]
[1726583153054,7.3969,135.2,135.19,8.36930022]
[1726583153955,7.3956,135.22,135.21,8.36930022]
[1726583155378,19.0121319,135.25,135.19,8.36930022]
[1726583155379,7.3964,135.2,135.19,8.36930022]
[1726583155591,7.3975,135.18,135.17,8.36930022]
[1726583155872,18.4881,135.23,135.17,8.36930022]
[1726583156074,7.3965,135.2,135.19,8.36930022]
[1726583156456,38.12187243,135.22,135.14,8.36930022]
[1726583156654,0.12549,135.21,135.14,8.36930022]
[1726583157575,7.3991,135.15,135.14,8.36930022]
[1726583157776,7.4002,135.13,135.12,8.36930022]
[1726583158453,7.4013,135.11,135.1,8.36930022]
[1726583159156,7.403,135.08,135.07,8.36930022]
[1726583159973,18.499,135.15,135.11,8.36930022]
[1726583160174,7.4014,135.11,135.09,8.36930022]
[1726583160363,7.403,135.08,135.06,8.36930022]
[1726583160687,7.403,135.08,135.0,90.69708361]
[1726583160688,7.402,135.1,135.08,8.36930022]
[1726583160977,6.2785,135.2,135.12,8.36930022]
[1726583161178,6.2785,135.2,135.01,37.0328]
[1726583161179,7.3987,135.16,135.14,8.36930022]
[1726583161574,6.2785,135.2,135.16,8.36930022]
[1726583161575,7.398,135.18,135.16,8.36930022]
[1726583161754,16.1826,135.21,135.16,8.36930022]
[1726583161958,18.4856,135.24,135.18,8.36930022]
[1726583162359,7.3969,135.19,135.18,8.36930022]
[1726583162584,7.398,135.17,135.16,8.36930022]
[1726583162758,1.14387243,135.21,135.16,8.36930022]
[1726583163081,7.397,135.19,135.17,8.36930022]
[1726583163598,1.14387243,135.24,135.17,8.36930022]
[1726583163760,6.6053319,135.25,135.19,8.36930022]
[1726583163963,1.14387243,135.24,135.17,8.36930022]
[1726583164162,36.9782,135.22,135.12,8.36930022]
[1726583164369,36.9782,135.22,135.15,8.36930022]
[1726583164868,7.3986,135.16,135.15,8.36930022]
[1726583165086,18.4879,135.23,135.17,8.36930022]
[1726583165379,1.26936243,135.22,135.15,8.36930022]
[1726583165967,7.3986,135.16,135.15,8.36930022]
[1726583166387,18.4938,135.19,135.1,8.36930022]
[1726583166687,0.12549,135.18,135.12,8.36930022]
[1726583166884,7.4002,135.14,135.12,8.36930022]
[1726583167289,7.4002,135.13,135.12,8.36930022]
[1726583167776,7.4013,135.11,135.1,8.36930022]
[1726583168160,1.14387243,135.15,134.97,18.5222]
[1726583168161,18.5064,135.09,134.97,18.5222]
[1726583168362,1.14387243,135.08,135.03,8.36930022]
[1726583168581,7.4052,135.04,135.03,8.36930022]
[1726583168978,7.4044,135.06,135.05,8.36930022]
[1726583169186,0.12549,135.12,135.05,8.36930022]
[1726583169392,7.4036,135.07,135.05,8.36930022]
[1726583169589,18.5022,135.12,135.07,8.36930022]
[1726583169765,7.403,135.08,135.07,8.36930022]
[1726583170168,37.0103,135.1,135.02,8.36930022]
[1726583170489,7.4052,135.04,135.02,8.36930022]
[1726583170697,18.5085,135.08,135.02,8.36930022]
[1726583170698,7.4057,135.03,135.02,8.36930022]
[1726583171183,7.4051,135.05,135.02,8.36930022]
[1726583171384,7.4034,135.08,135.04,8.36930022]
[1726583171681,18.5039,135.11,135.06,8.36930022]
[1726583171682,7.4036,135.07,135.06,8.36930022]
[1726583171862,18.5039,135.11,135.05,8.36930022]